Workbook

Sheet FELÚJÍTÁSI KÖLTSÉGEK
B1: KONYHAFELÚJÍTÁS KÖLTSÉGÉNEK KISZÁMÍTÁSA
B3: Kategória | C3: Tételek | D3: Mennyiség | E3: Becsült költség | F3: Tényleges költség | G3: Teljes becsült költség | H3: Teljes tényleges költség
B4: Szekrények | C4: Alsó szekrények: moduláris, normál kivitelű (mennyiség folyóméterben) | D4: 25 | E4: 5.00 Ft | G4: =Adatok[[#This Row],[Mennyiség]]*Adatok[[#This Row],[Becsült költség]] -> 125 Ft | H4: =Adatok[[#This Row],[Mennyiség]]*Adatok[[#This Row],[Tényleges költség]] -> 0 Ft
B5: Szekrények | C5: Felső szekrények: moduláris, normál kivitelű (mennyiség folyóméterben) | D5: 25 | E5: 3.50 Ft | G5: =Adatok[[#This Row],[Mennyiség]]*Adatok[[#This Row],[Becsült költség]] -> 88 Ft | H5: =Adatok[[#This Row],[Mennyiség]]*Adatok[[#This Row],[Tényleges költség]] -> 0 Ft
B6: Tisztítóberendezések | C6: Mosogatógép: normál kivitelű | D6: 1 | E6: 250.00 Ft | G6: =Adatok[[#This Row],[Mennyiség]]*Adatok[[#This Row],[Becsült költség]] -> 250 Ft | H6: =Adatok[[#This Row],[Mennyiség]]*Adatok[[#This Row],[Tényleges költség]] -> 0 Ft
B7: Tisztítóberendezések | C7: Hulladékfeldolgozó: normál kivitelű | D7: 1 | E7: 175.00 Ft | G7: =Adatok[[#This Row],[Mennyiség]]*Adatok[[#This Row],[Becsült költség]] -> 175 Ft | H7: =Adatok[[#This Row],[Mennyiség]]*Adatok[[#This Row],[Tényleges költség]] -> 0 Ft
B8: Főzőberendezések | C8: Tűzhely: szabadon álló, normál kivitelű | D8: 1 | E8: 375.00 Ft | G8: =Adatok[[#This Row],[Mennyiség]]*Adatok[[#This Row],[Becsült költség]] -> 375 Ft | H8: =Adatok[[#This Row],[Mennyiség]]*Adatok[[#This Row],[Tényleges költség]] -> 0 Ft
B9: Főzőberendezések | C9: Mikrohullámú sütő: normál kivitelű | D9: 1 | E9: 300.00 Ft | G9: =Adatok[[#This Row],[Mennyiség]]*Adatok[[#This Row],[Becsült költség]] -> 300 Ft | H9: =Adatok[[#This Row],[Mennyiség]]*Adatok[[#This Row],[Tényleges költség]] -> 0 Ft
B10: Pultok | C10: Szilárd felület (mennyiség folyóméterben) | D10: 23 | E10: 10.00 Ft | G10: =Adatok[[#This Row],[Mennyiség]]*Adatok[[#This Row],[Becsült költség]] -> 230 Ft | H10: =Adatok[[#This Row],[Mennyiség]]*Adatok[[#This Row],[Tényleges költség]] -> 0 Ft
B11: Ajtók | C11: Belső: furnérozott deszka | D11: 1 | E11: 65.00 Ft | G11: =Adatok[[#This Row],[Mennyiség]]*Adatok[[#This Row],[Becsült költség]] -> 65 Ft | H11: =Adatok[[#This Row],[Mennyiség]]*Adatok[[#This Row],[Tényleges költség]] -> 0 Ft
B12: Egyebek | C12: Egyebek: átfolyós vízmelegítő – normál kivitelű | D12: 1 | E12: 120.00 Ft | G12: =Adatok[[#This Row],[Mennyiség]]*Adatok[[#This Row],[Becsült költség]] -> 120 Ft | H12: =Adatok[[#This Row],[Mennyiség]]*Adatok[[#This Row],[Tényleges költség]] -> 0 Ft
B13: Egyebek | C13: Egyebek: szappanadagoló | D13: 1 | E13: 40.00 Ft | G13: =Adatok[[#This Row],[Mennyiség]]*Adatok[[#This Row],[Becsült költség]] -> 40 Ft | H13: =Adatok[[#This Row],[Mennyiség]]*Adatok[[#This Row],[Tényleges költség]] -> 0 Ft
B14: Csapok | C14: Csap: karos, normál kivitelű | D14: 1 | E14: 130.00 Ft | G14: =Adatok[[#This Row],[Mennyiség]]*Adatok[[#This Row],[Becsült költség]] -> 130 Ft | H14: =Adatok[[#This Row],[Mennyiség]]*Adatok[[#This Row],[Tényleges költség]] -> 0 Ft
B15: Padlóburkolat | C15: Laminált (mennyiség négyzetméterben) | D15: 165 | E15: 3.50 Ft | G15: =Adatok[[#This Row],[Mennyiség]]*Adatok[[#This Row],[Becsült költség]] -> 578 Ft | H15: =Adatok[[#This Row],[Mennyiség]]*Adatok[[#This Row],[Tényleges költség]] -> 0 Ft
B16: Mosógépek | C16: Mosógép: normál kivitelű | D16: 1 | E16: 500.00 Ft | G16: =Adatok[[#This Row],[Mennyiség]]*Adatok[[#This Row],[Becsült költség]] -> 500 Ft | H16: =Adatok[[#This Row],[Mennyiség]]*Adatok[[#This Row],[Tényleges költség]] -> 0 Ft
B17: Mosógépek | C17: Szárítógép: normál kivitelű | D17: 1 | E17: 375.00 Ft | G17: =Adatok[[#This Row],[Mennyiség]]*Adatok[[#This Row],[Becsült költség]] -> 375 Ft | H17: =Adatok[[#This Row],[Mennyiség]]*Adatok[[#This Row],[Tényleges költség]] -> 0 Ft
B18: Világítás | C18: Világítás: süllyesztett hengeres | D18: 4 | E18: 35.00 Ft | G18: =Adatok[[#This Row],[Mennyiség]]*Adatok[[#This Row],[Becsült költség]] -> 140 Ft | H18: =Adatok[[#This Row],[Mennyiség]]*Adatok[[#This Row],[Tényleges költség]] -> 0 Ft
B19: Hűtőszekrények | C19: Hűtőszekrény: szabadon álló, luxuskivitelű | D19: 1 | E19: 1,200.00 Ft | G19: =Adatok[[#This Row],[Mennyiség]]*Adatok[[#This Row],[Becsült költség]] -> 1,200 Ft | H19: =Adatok[[#This Row],[Mennyiség]]*Adatok[[#This Row],[Tényleges költség]] -> 0 Ft
B20: Mosogatók | C20: Kétkagylós rozsdamentes acél, luxuskivitelű | D20: 1 | E20: 125.00 Ft | G20: =Adatok[[#This Row],[Mennyiség]]*Adatok[[#This Row],[Becsült költség]] -> 125 Ft | H20: =Adatok[[#This Row],[Mennyiség]]*Adatok[[#This Row],[Tényleges költség]] -> 0 Ft
B21: Szellőzés | C21: Kürtős egység: kivezetett, normál kivitelű | D21: 1 | E21: 180.00 Ft | G21: =Adatok[[#This Row],[Mennyiség]]*Adatok[[#This Row],[Becsült költség]] -> 180 Ft | H21: =Adatok[[#This Row],[Mennyiség]]*Adatok[[#This Row],[Tényleges költség]] -> 0 Ft
B22: Falak | C22: Lambéria (mennyiség négyzetméterben) | D22: 70 | E22: 2.00 Ft | G22: =Adatok[[#This Row],[Mennyiség]]*Adatok[[#This Row],[Becsült költség]] -> 140 Ft | H22: =Adatok[[#This Row],[Mennyiség]]*Adatok[[#This Row],[Tényleges költség]] -> 0 Ft
B23: Ablakok | C23: Tolóablakok | D23: 2 | E23: 120.00 Ft | G23: =Adatok[[#This Row],[Mennyiség]]*Adatok[[#This Row],[Becsült költség]] -> 240 Ft | H23: =Adatok[[#This Row],[Mennyiség]]*Adatok[[#This Row],[Tényleges költség]] -> 0 Ft
B24: Egyéb | G24: =Adatok[[#This Row],[Mennyiség]]*Adatok[[#This Row],[Becsült költség]] -> 0 Ft | H24: =Adatok[[#This Row],[Mennyiség]]*Adatok[[#This Row],[Tényleges költség]] -> 0 Ft
B25: Összesen | E25: =SUBTOTAL(109,Adatok[Becsült költség]) -> 4,014.00 Ft | F25: =SUBTOTAL(109,Adatok[Tényleges költség]) -> 0.00 Ft | G25: =SUBTOTAL(109,Adatok[Teljes becsült költség]) -> 5,375.00 Ft | H25: =SUBTOTAL(109,Adatok[Teljes tényleges költség]) -> 0.00 Ft
B26: Részösszeg | G26: =SUBTOTAL(109,Adatok[Teljes becsült költség]) -> 5,375.00 Ft | H26: =SUBTOTAL(109,Adatok[Teljes tényleges költség]) -> 0.00 Ft
B27: Váratlan költségek – plusz 30% | G27: =G26*0.3 -> 1,612.50 Ft | H27: =H26*0.3 -> 0.00 Ft
B28: Összesen | G28: =SUM(G26:G27) -> 6,987.50 Ft | H28: =SUM(H26:H27) -> 0.00 Ft
